{"text_format":"3","workbook":"xlsx","n_sheets":2,"sheets":["Monitorizare proiecte","Configurare"],"not_rendered":{"defined_names":6},"read":"whole","date_system":"1900"}

{"sheet":"Monitorizare proiecte","index":0,"n_rows":13,"n_cols":15,"rows_kept":13}
[null,"Monitorizare proiecte"]
[null,null,"Procent peste/sub de semnalizat: ",{"v":0.25,"d":"25%"}]
[]
[null,"Proiect","Categorie","Atribuit către","Estimat\nPornire","Estimat \nTerminat","Lucru estimat (în ore)","Durată estimată (în zile)","Real \nPornire","Real\nTerminat","Pictograma de semnalizare pentru peste/sub lucru efectiv (în ore)","Lucru efectiv (în ore)","Pictograma de semnalizare pentru peste/sub durata efectivă (în zile)","Durata efectivă (în zile)","Note"]
[null,"Proiectul 1","Categoria 1","Angajat 1",{"$f":"TODAY()-65","v":"2016-08-17"},{"$f":"TODAY()-5","v":"2016-10-16"},210,{"$f":"IF(COUNTA('Monitorizare proiecte'!$E5,'Monitorizare proiecte'!$F5)<>2,\"\",DAYS360('Monitorizare proiecte'!$E5,'Monitorizare proiecte'!$F5,FALSE))","v":59},{"$f":"TODAY()-65","v":"2016-08-17"},{"$f":"TODAY()","v":"2016-10-21"},{"$f":"IFERROR(IF(MonitorizareProiecte[Lucru efectiv (în ore)]=0,\"\",IF(ABS((MonitorizareProiecte[[#This Row],[Lucru efectiv (în ore)]]-MonitorizareProiecte[[#This Row],[Lucru estimat (în ore)]])/MonitorizareProiecte[[#This Row],[Lucru estimat (în ore)]])>SemnalizareProcent,1,0)),\"\")","v":1},300,{"$f":"IFERROR(IF(MonitorizareProiecte[Durata efectivă (în zile)]=0,\"\",IF(ABS((MonitorizareProiecte[[#This Row],[Durata efectivă (în zile)]]-MonitorizareProiecte[[#This Row],[Durată estimată (în zile)]])/MonitorizareProiecte[[#This Row],[Durată estimată (în zile)]])>SemnalizareProcent,1,0)),\"\")","v":0},{"$f":"IF(COUNTA('Monitorizare proiecte'!$I5,'Monitorizare proiecte'!$J5)<>2,\"\",DAYS360('Monitorizare proiecte'!$I5,'Monitorizare proiecte'!$J5,FALSE))","v":64}]
[null,"Proiectul 2","Categoria 2","Angajat 4",{"$f":"TODAY()-41","v":"2016-09-10"},{"$f":"TODAY()-10","v":"2016-10-11"},400,{"$f":"IF(COUNTA('Monitorizare proiecte'!$E6,'Monitorizare proiecte'!$F6)<>2,\"\",DAYS360('Monitorizare proiecte'!$E6,'Monitorizare proiecte'!$F6,FALSE))","v":31},{"$f":"TODAY()-41","v":"2016-09-10"},{"$f":"TODAY()-7","v":"2016-10-14"},{"$f":"IFERROR(IF(MonitorizareProiecte[Lucru efectiv (în ore)]=0,\"\",IF(ABS((MonitorizareProiecte[[#This Row],[Lucru efectiv (în ore)]]-MonitorizareProiecte[[#This Row],[Lucru estimat (în ore)]])/MonitorizareProiecte[[#This Row],[Lucru estimat (în ore)]])>SemnalizareProcent,1,0)),\"\")","v":0},390,{"$f":"IFERROR(IF(MonitorizareProiecte[Durata efectivă (în zile)]=0,\"\",IF(ABS((MonitorizareProiecte[[#This Row],[Durata efectivă (în zile)]]-MonitorizareProiecte[[#This Row],[Durată estimată (în zile)]])/MonitorizareProiecte[[#This Row],[Durată estimată (în zile)]])>SemnalizareProcent,1,0)),\"\")","v":0},{"$f":"IF(COUNTA('Monitorizare proiecte'!$I6,'Monitorizare proiecte'!$J6)<>2,\"\",DAYS360('Monitorizare proiecte'!$I6,'Monitorizare proiecte'!$J6,FALSE))","v":34}]
[null,"Proiectul 3","Categoria 1","Angajat 2",{"$f":"TODAY()-100","v":"2016-07-13"},{"$f":"TODAY()-40","v":"2016-09-11"},500,{"$f":"IF(COUNTA('Monitorizare proiecte'!$E7,'Monitorizare proiecte'!$F7)<>2,\"\",DAYS360('Monitorizare proiecte'!$E7,'Monitorizare proiecte'!$F7,FALSE))","v":58},{"$f":"TODAY()-100","v":"2016-07-13"},{"$f":"TODAY()-27","v":"2016-09-24"},{"$f":"IFERROR(IF(MonitorizareProiecte[Lucru efectiv (în ore)]=0,\"\",IF(ABS((MonitorizareProiecte[[#This Row],[Lucru efectiv (în ore)]]-MonitorizareProiecte[[#This Row],[Lucru estimat (în ore)]])/MonitorizareProiecte[[#This Row],[Lucru estimat (în ore)]])>SemnalizareProcent,1,0)),\"\")","v":0},500,{"$f":"IFERROR(IF(MonitorizareProiecte[Durata efectivă (în zile)]=0,\"\",IF(ABS((MonitorizareProiecte[[#This Row],[Durata efectivă (în zile)]]-MonitorizareProiecte[[#This Row],[Durată estimată (în zile)]])/MonitorizareProiecte[[#This Row],[Durată estimată (în zile)]])>SemnalizareProcent,1,0)),\"\")","v":0},{"$f":"IF(COUNTA('Monitorizare proiecte'!$I7,'Monitorizare proiecte'!$J7)<>2,\"\",DAYS360('Monitorizare proiecte'!$I7,'Monitorizare proiecte'!$J7,FALSE))","v":71}]
[null,"Proiectul 4","Categoria 2","Angajat 3",{"$f":"TODAY()-90","v":"2016-07-23"},{"$f":"TODAY()-80","v":"2016-08-02"},250,{"$f":"IF(COUNTA('Monitorizare proiecte'!$E8,'Monitorizare proiecte'!$F8)<>2,\"\",DAYS360('Monitorizare proiecte'!$E8,'Monitorizare proiecte'!$F8,FALSE))","v":9},{"$f":"TODAY()-90","v":"2016-07-23"},{"$f":"TODAY()-71","v":"2016-08-11"},{"$f":"IFERROR(IF(MonitorizareProiecte[Lucru efectiv (în ore)]=0,\"\",IF(ABS((MonitorizareProiecte[[#This Row],[Lucru efectiv (în ore)]]-MonitorizareProiecte[[#This Row],[Lucru estimat (în ore)]])/MonitorizareProiecte[[#This Row],[Lucru estimat (în ore)]])>SemnalizareProcent,1,0)),\"\")","v":0},276,{"$f":"IFERROR(IF(MonitorizareProiecte[Durata efectivă (în zile)]=0,\"\",IF(ABS((MonitorizareProiecte[[#This Row],[Durata efectivă (în zile)]]-MonitorizareProiecte[[#This Row],[Durată estimată (în zile)]])/MonitorizareProiecte[[#This Row],[Durată estimată (în zile)]])>SemnalizareProcent,1,0)),\"\")","v":1},{"$f":"IF(COUNTA('Monitorizare proiecte'!$I8,'Monitorizare proiecte'!$J8)<>2,\"\",DAYS360('Monitorizare proiecte'!$I8,'Monitorizare proiecte'!$J8,FALSE))","v":18}]
[null,"Proiectul 5","Categoria 3","Angajat 2",{"$f":"TODAY()-90","v":"2016-07-23"},{"$f":"TODAY()-50","v":"2016-09-01"},300,{"$f":"IF(COUNTA('Monitorizare proiecte'!$E9,'Monitorizare proiecte'!$F9)<>2,\"\",DAYS360('Monitorizare proiecte'!$E9,'Monitorizare proiecte'!$F9,FALSE))","v":38},{"$f":"TODAY()-90","v":"2016-07-23"},{"$f":"TODAY()-44","v":"2016-09-07"},{"$f":"IFERROR(IF(MonitorizareProiecte[Lucru efectiv (în ore)]=0,\"\",IF(ABS((MonitorizareProiecte[[#This Row],[Lucru efectiv (în ore)]]-MonitorizareProiecte[[#This Row],[Lucru estimat (în ore)]])/MonitorizareProiecte[[#This Row],[Lucru estimat (în ore)]])>SemnalizareProcent,1,0)),\"\")","v":0},310,{"$f":"IFERROR(IF(MonitorizareProiecte[Durata efectivă (în zile)]=0,\"\",IF(ABS((MonitorizareProiecte[[#This Row],[Durata efectivă (în zile)]]-MonitorizareProiecte[[#This Row],[Durată estimată (în zile)]])/MonitorizareProiecte[[#This Row],[Durată estimată (în zile)]])>SemnalizareProcent,1,0)),\"\")","v":0},{"$f":"IF(COUNTA('Monitorizare proiecte'!$I9,'Monitorizare proiecte'!$J9)<>2,\"\",DAYS360('Monitorizare proiecte'!$I9,'Monitorizare proiecte'!$J9,FALSE))","v":44}]
[null,"Proiectul 6","Categoria 4","Angajat 4",{"$f":"TODAY()-60","v":"2016-08-22"},{"$f":"TODAY()-50","v":"2016-09-01"},500,{"$f":"IF(COUNTA('Monitorizare proiecte'!$E10,'Monitorizare proiecte'!$F10)<>2,\"\",DAYS360('Monitorizare proiecte'!$E10,'Monitorizare proiecte'!$F10,FALSE))","v":9},{"$f":"TODAY()-60","v":"2016-08-22"},{"$f":"TODAY()-45","v":"2016-09-06"},{"$f":"IFERROR(IF(MonitorizareProiecte[Lucru efectiv (în ore)]=0,\"\",IF(ABS((MonitorizareProiecte[[#This Row],[Lucru efectiv (în ore)]]-MonitorizareProiecte[[#This Row],[Lucru estimat (în ore)]])/MonitorizareProiecte[[#This Row],[Lucru estimat (în ore)]])>SemnalizareProcent,1,0)),\"\")","v":0},510,{"$f":"IFERROR(IF(MonitorizareProiecte[Durata efectivă (în zile)]=0,\"\",IF(ABS((MonitorizareProiecte[[#This Row],[Durata efectivă (în zile)]]-MonitorizareProiecte[[#This Row],[Durată estimată (în zile)]])/MonitorizareProiecte[[#This Row],[Durată estimată (în zile)]])>SemnalizareProcent,1,0)),\"\")","v":1},{"$f":"IF(COUNTA('Monitorizare proiecte'!$I10,'Monitorizare proiecte'!$J10)<>2,\"\",DAYS360('Monitorizare proiecte'!$I10,'Monitorizare proiecte'!$J10,FALSE))","v":14}]
[null,"Proiectul 7","Categoria 5","Angajat 1",{"$f":"TODAY()-44","v":"2016-09-07"},{"$f":"TODAY()-20","v":"2016-10-01"},750,{"$f":"IF(COUNTA('Monitorizare proiecte'!$E11,'Monitorizare proiecte'!$F11)<>2,\"\",DAYS360('Monitorizare proiecte'!$E11,'Monitorizare proiecte'!$F11,FALSE))","v":24},{"$f":"TODAY()-44","v":"2016-09-07"},{"$f":"TODAY()-15","v":"2016-10-06"},{"$f":"IFERROR(IF(MonitorizareProiecte[Lucru efectiv (în ore)]=0,\"\",IF(ABS((MonitorizareProiecte[[#This Row],[Lucru efectiv (în ore)]]-MonitorizareProiecte[[#This Row],[Lucru estimat (în ore)]])/MonitorizareProiecte[[#This Row],[Lucru estimat (în ore)]])>SemnalizareProcent,1,0)),\"\")","v":0},790,{"$f":"IFERROR(IF(MonitorizareProiecte[Durata efectivă (în zile)]=0,\"\",IF(ABS((MonitorizareProiecte[[#This Row],[Durata efectivă (în zile)]]-MonitorizareProiecte[[#This Row],[Durată estimată (în zile)]])/MonitorizareProiecte[[#This Row],[Durată estimată (în zile)]])>SemnalizareProcent,1,0)),\"\")","v":0},{"$f":"IF(COUNTA('Monitorizare proiecte'!$I11,'Monitorizare proiecte'!$J11)<>2,\"\",DAYS360('Monitorizare proiecte'!$I11,'Monitorizare proiecte'!$J11,FALSE))","v":29}]
[null,"Proiectul 8","Categoria 2","Angajat 1",{"$f":"TODAY()-39","v":"2016-09-12"},{"$f":"TODAY()","v":"2016-10-21"},450,{"$f":"IF(COUNTA('Monitorizare proiecte'!$E12,'Monitorizare proiecte'!$F12)<>2,\"\",DAYS360('Monitorizare proiecte'!$E12,'Monitorizare proiecte'!$F12,FALSE))","v":39},{"$f":"TODAY()-45","v":"2016-09-06"},{"$f":"TODAY()-5","v":"2016-10-16"},{"$f":"IFERROR(IF(MonitorizareProiecte[Lucru efectiv (în ore)]=0,\"\",IF(ABS((MonitorizareProiecte[[#This Row],[Lucru efectiv (în ore)]]-MonitorizareProiecte[[#This Row],[Lucru estimat (în ore)]])/MonitorizareProiecte[[#This Row],[Lucru estimat (în ore)]])>SemnalizareProcent,1,0)),\"\")","v":0},430,{"$f":"IFERROR(IF(MonitorizareProiecte[Durata efectivă (în zile)]=0,\"\",IF(ABS((MonitorizareProiecte[[#This Row],[Durata efectivă (în zile)]]-MonitorizareProiecte[[#This Row],[Durată estimată (în zile)]])/MonitorizareProiecte[[#This Row],[Durată estimată (în zile)]])>SemnalizareProcent,1,0)),\"\")","v":0},{"$f":"IF(COUNTA('Monitorizare proiecte'!$I12,'Monitorizare proiecte'!$J12)<>2,\"\",DAYS360('Monitorizare proiecte'!$I12,'Monitorizare proiecte'!$J12,FALSE))","v":40}]
[null,"proiectul 9","Categoria 4","Angajat 1","2016-02-05","2016-06-09",250,{"$f":"IF(COUNTA('Monitorizare proiecte'!$E13,'Monitorizare proiecte'!$F13)<>2,\"\",DAYS360('Monitorizare proiecte'!$E13,'Monitorizare proiecte'!$F13,FALSE))","v":124},"2016-03-05","2016-05-05",{"$f":"IFERROR(IF(MonitorizareProiecte[Lucru efectiv (în ore)]=0,\"\",IF(ABS((MonitorizareProiecte[[#This Row],[Lucru efectiv (în ore)]]-MonitorizareProiecte[[#This Row],[Lucru estimat (în ore)]])/MonitorizareProiecte[[#This Row],[Lucru estimat (în ore)]])>SemnalizareProcent,1,0)),\"\")","v":0},200,{"$f":"IFERROR(IF(MonitorizareProiecte[Durata efectivă (în zile)]=0,\"\",IF(ABS((MonitorizareProiecte[[#This Row],[Durata efectivă (în zile)]]-MonitorizareProiecte[[#This Row],[Durată estimată (în zile)]])/MonitorizareProiecte[[#This Row],[Durată estimată (în zile)]])>SemnalizareProcent,1,0)),\"\")","v":1},{"$f":"IF(COUNTA('Monitorizare proiecte'!$I13,'Monitorizare proiecte'!$J13)<>2,\"\",DAYS360('Monitorizare proiecte'!$I13,'Monitorizare proiecte'!$J13,FALSE))","v":60}]

{"sheet":"Configurare","index":1,"n_rows":10,"n_cols":3,"rows_kept":10}
[null,"Configurare"]
[]
[]
[null,"Nume categorie","Nume angajat"]
[null,"Categoria 1","Angajat 1"]
[null,"Categoria 2","Angajat 2"]
[null,"Categoria 3","Angajat 3"]
[null,"Categoria 4","Angajat 4"]
[null,"Categoria 5","Angajat 5"]
[null,"Categoria 6","Angajat 6"]